Cogmind - Beta 16 @@@ ROGUE MODE // 2026.01.04 @ 18:17:59 Player: C4PT41N Result: Destroyed by as-44517 with Assembled Maul Performance ------------- Evolutions (0) 0 Regions Visited (3) 600 Robots Destroyed (24) 120 Value Destroyed (485) 485 Prototype IDs (3) 60 Alien Tech Used (0) 0 Bonus (325) 325 TOTAL SCORE: 1590 Bonus ------- Follower Combat Kills 25 Aligned with FarCom 300 Cogmind --------- Core Integrity 0/250 Matter 60/300 Energy 100/100 System Corruption 2% Temperature Cool (15) Movement Core (100) Ox1 Location -10/Exiles Parts ------- > --- POWER (1) -------- (None) > --- PROPULSION (2) --- (None) > --- UTILITY (2) ------ Signal Interpreter > --- WEAPON (2) ------- Grenade Launcher Grenade Launcher > --- INVENTORY (5) ---- Large Battery (200) Structural Scanner Beamcaster AWS/Gauss Peak State ------------ > --- POWER ------------ Ion Engine > --- PROPULSION ------- Wheel Wheel > --- UTILITY ---------- Signal Interpreter Light Armor Plating > --- WEAPON ----------- AWS/Gauss > --- INVENTORY -------- Large Battery Structural Scanner Beamcaster Mining Laser [Rating: 21] Favorites ----------- Power Ion Engine Engine Ion Engine Propulsion Compact Wheel Wheel Compact Wheel Utility Light Armor Plating Device Seismic Detector Storage Small Storage Unit Processor Signal Interpreter Protection Light Armor Plating Weapon Grenade Launcher Energy Gun EM Pulse Gun Ballistic Gun Assault Rifle Launcher Grenade Launcher Special Weapon Mining Laser Build | -11 -10 -10 -10 ------- Run | Yrd Mat Min Exi Slots Evolved . | . . . . Power . | . . . . Propulsion . | . . . . Utility . | . . . . Weapon . | . . . . Parts Attached 23 | 7 7 5 4 Power 4 | 1 2 1 . Engine 4 | 1 2 1 . Core . | . . . . Reactor . | . . . . Propulsion 4 | 2 . 2 . Treads . | . . . . Leg . | . . . . Wheel 4 | 2 . 2 . Hover . | . . . . Flight . | . . . . Utility 8 | 2 3 1 2 Device 3 | 1 1 . 1 Storage 1 | 1 . . . Processor 2 | . . 1 1 Hackware . | . . . . Protection 2 | . 2 . . Artifact . | . . . . Weapon 7 | 2 2 1 2 Energy Gun 1 | . 1 . . Energy Cannon . | . . . . Ballistic Gun 3 | 2 . . 1 Ballistic Cannon . | . . . . Launcher 2 | . 1 1 . Special Weapon 1 | . . . 1 Impact Weapon . | . . . . Slashing Weapon . | . . . . Piercing Weapon . | . . . . Special Melee Weapon . | . . . . Unidentified Prototypes 3 | . . . 3 Parts Lost 4 | . . . 4 Power 1 | . . . 1 Propulsion 2 | . . . 2 Utility 1 | . . . 1 Weapon . | . . . . Highest Loss Streak 4 | . . . 4 To Critical Strikes . | . . . . Average Backups 5 | 4 7 4 3 Power . | . 1 . . Propulsion 2 | 1 3 1 . Utility . | . . 1 2 Weapon 1 | 1 1 1 1 Tool/Special . | . . . . Unused Backups 6 | 2 2 . 2 Power . | . . . . Propulsion 4 | 2 2 . . Utility 1 | . . . 1 Weapon 1 | . . . 1 Tool/Special . | . . . . Average Slot Usage (%) 99 | . 99 99 95 Engine 13 | . 14 14 13 Wheel 27 | . 28 28 27 Device 9 | . 13 7 . Storage 5 | . 10 . . Processor 4 | . . 6 14 Protection 8 | . 3 14 12 Energy Gun 6 | . 14 . . Ballistic Gun 1 | . 1 . 1 Launcher 19 | . 12 27 24 Peak Build Rating 21 | 7 7 7 21 Average Rating 7 | 5 6 6 8 On Entrance 5 | . 7 7 7 Avg Prop Armor Cover (%) . | . . . . Naked Turns . | . . . . Heaviest Build 18 | 12 16 15 18 Greatest Support 32 | 32 32 32 20 Greatest Overweight (x) . | . . . . Average Overweight (x) . | . . . . Largest Inventory Capacity 8 | 8 8 5 5 Average Capacity 6 | 7 7 5 5 Most Carried 8 | 7 8 5 5 Average Carried 5 | 4 7 4 4 Final Capacity 8 | 8 5 5 5 Final Carried 7 | 7 5 4 5 Class Distribution -------------------- 100% | Mutant Dominant Class ---------------- Mutant | -10/Materials Mutant | -10/Mines Mutant | -10/Exiles Resources | -11 -10 -10 -10 ----------- Run | Yrd Mat Min Exi Matter Collected 678 | 314 143 221 . Remotely . | . . . . Salvage Created 533 | 86 296 151 . Parts 43 | 9 18 16 . Haulers Intercepted 1 | . 1 . . Recyclers Shooed . | . . . . Parts Field Recycled . | . . . . Retrieved Matter . | . . . . Parts Self-Destructed . | . . . . Prevented . | . . . . Parts Restored . | . . . . Kills | -11 -10 -10 -10 ------- Run | Yrd Mat Min Exi Combat Hostiles Destroyed 13 | . 3 10 . Guns 2 | . 2 . . AOE 11 | . 1 10 . Classes Destroyed 8 | 3 4 1 . Worker 6 | 1 4 1 . Tunneler 1 | 1 . . . Hauler 1 | . 1 . . Recycler 1 | 1 . . . Operator 1 | . 1 . . Watcher 1 | . 1 . . Swarmer 3 | . . 3 . Grunt 10 | . 3 7 . Best Kill Streak 4 | 1 2 4 . Combat Bots Only 3 | . 2 3 . Max Kills in Single Turn 2 | 1 2 2 . Gunslinging . | . . . . Exploded 2 | . 1 2 . Melee . | . . . . Uniques/NPCs Destroyed . | . . . . Combat | -11 -10 -10 -10 -------- Run | Yrd Mat Min Exi Hostile Shots Fired 79 | . 13 24 42 Missed 28 | . 4 9 15 Hits 51 | . 9 15 27 Melee 5 | . . . 5 Projectile 46 | . 9 15 22 Damage Taken 763 | . 131 238 394 Core 259 | . 49 71 139 Absorbed by Shields . | . . . . Core Remaining (%) 100 | 100 . . . Volleys Fired 73 | 11 39 18 5 Largest 2 | 2 2 2 2 Hottest 100 | 40 70 60 100 Shots Fired 106 | 22 50 28 6 Gun 70 | 22 48 . . Cannon . | . . . . Launcher 32 | . 2 28 2 Special 4 | . . . 4 Kinetic 31 | 22 9 . . Thermal 4 | . . . 4 Explosive 32 | . 2 28 2 Electromagnetic 39 | . 39 . . Robot Hit Streak 11 | 11 9 7 . Robot Miss Streak 5 | 2 5 2 . Penetration Max . | . . . . Secondary Targets . | . . . . Shots Hit Robots 58 | 18 29 11 . Core Hits 42 | 4 14 21 3 Critical Kills . | . . . . Critical Parts Destroyed . | . . . . Critical Strikes . | . . . . Melee Attacks . | . . . . Impact . | . . . . Slashing . | . . . . Piercing . | . . . . Sneak Attacks . | . . . . Combat Hostiles . | . . . . Follow-up Attacks . | . . . . Damage Inflicted 1712 | 196 541 958 17 Guns 616 | 196 420 . . Cannons . | . . . . Explosions 1092 | . 121 954 17 Melee . | . . . . Ramming 4 | . . 4 . Kinetic 281 | 196 85 . . Thermal 73 | . 73 . . Explosive 1019 | . 48 954 17 Electromagnetic 335 | . 335 . . Impact . | . . . . Slashing . | . . . . Piercing . | . . . . Highest Corruption 2 | . 2 2 2 Average Corruption 2 | . 2 2 2 Corruption Purged . | . . . . Corruption Blocked . | . . . . Effects 29 | . 12 14 3 Message Errors 4 | . 2 2 . Matter Fused 9 | . 3 5 1 Heat Flow Errors 4 | . 2 1 1 Energy Discharges 4 | . 2 2 . Data Loss (minor) 2 | . 1 . 1 Data Loss (major) 2 | . 1 1 . Misfires 1 | . . 1 . Alerts 3 | . 1 2 . Overload Shots . | . . . . Overflow Damage 19 | . . 19 . Projectiles . | . . . . Explosions 19 | . . 19 . Melee . | . . . . Knockbacks . | . . . . Impact . | . . . . Kinetic . | . . . . Secondary . | . . . . Self-Inflicted Damage 101 | . 25 76 . Shots 7 | . 2 5 . Rammed 1 | . . 1 . Targets Rammed 1 | . . 1 . Kicked . | . . . . Crushed . | . . . . Highest Temperature 238 | . 238 186 132 Average Temperature 44 | . 41 32 71 Received Heat Transfer 209 | . 60 69 80 Siege Activations . | . . . . Martial Activations . | . . . . Shielding Activations . | . . . . Robots Disrupted . | . . . . Combat Hostiles . | . . . . Robots Corrupted . | . . . . Combat Hostiles . | . . . . Parts Fried 1 | . 1 . . Impact Corruptions . | . . . . Robots Melted . | . . . . Combat Hostiles . | . . . . Parts Melted 1 | . . 1 . Heat Transferred 100 | . 100 . . Parts Sabotaged . | . . . . Parts Stolen . | . . . . Parts Stripped . | . . . . Power Chain Reactions 2 | . 2 . . Alert | -11 -10 -10 -10 ------- Run | Yrd Mat Min Exi Maximum Alert Level . | . . . . Low Security (%) 100 | 100 100 100 . Level 1 . | . . . . Level 2 . | . . . . Level 3 . | . . . . Level 4 . | . . . . Level 5 . | . . . . High Security . | . . . . Max Security . | . . . . Peak Influence 187 | 5 53 187 . Initial . | . . . . Average 29 | . 4 67 . Influence Increases 580 | 15 144 421 . Destroy 0b10 Robot/C 280 | . 60 220 . Destroy 0b10 Robot/NC 55 | 15 35 5 . Destroy Leader 64 | . 24 40 . Allied During Kill 1 | . . 1 . Successful Hack 7 | . 7 . . Disable Machine 15 | . . 15 . Destroy Structure 128 | . 18 110 . Lose Combat Pursuer 30 | . . 30 . Influence Decreases 580 | 15 144 324 97 Entered New Map 97 | . . . 97 Time Decay 463 | 15 144 304 . Lost Ally 20 | . . 20 . Squads Dispatched 2 | . 1 1 . Investigation . | . . . . Extermination . | . . . . Reinforcement 1 | . 1 . . Assault 1 | . . 1 . Garrison . | . . . . Intercept . | . . . . Searches Triggered . | . . . . Construction Impeded . | . . . . Haulers Reinforced . | . . . . Active Scanning Responses . | . . . . Cargo Convoy Interrupts . | . . . . Stealth | -11 -10 -10 -10 --------- Run | Yrd Mat Min Exi Distress Signals . | . . . . Communications Jammed . | . . . . Distress Signals . | . . . . Times Spotted 28 | . 10 11 7 Peak Tracking Total 9 | . 2 4 9 Tactical Retreats 1 | . . 1 . Traps | -11 -10 -10 -10 ------- Run | Yrd Mat Min Exi Traps Triggered 1 | . 1 . . Indirectly . | . . . . Trap Hack Attempts . | . . . . Triggered . | . . . . Disarmed . | . . . . Reprogrammed . | . . . . Reused . | . . . . Traps Extracted . | . . . . Installed . | . . . . Triggered . | . . . . Machines | -11 -10 -10 -10 ---------- Run | Yrd Mat Min Exi Machines Disabled 2 | . . 1 1 Max in Single Turn 1 | . . 1 1 Machines Repaired . | . . . . Machines Dismantled . | . . . . Machines Sabotaged . | . . . . Overloaded Fab Kills . | . . . . Hacking | -11 -10 -10 -10 --------- Run | Yrd Mat Min Exi Machines Accessed 3 | . 3 . . Terminals 2 | . 2 . . Fabricators . | . . . . Repair Stations . | . . . . Recycling Units 1 | . 1 . . Scanalyzers . | . . . . Garrison Access . | . . . . Total Hacks 9 | . 9 . . Successful 2 | . 2 . . Failed 7 | . 7 . . Catastrophic 2 | . 2 . . Database Lockouts . | . . . . Manual 2 | . 1 . 1 Terminals 6 | . 6 . . Fabricators . | . . . . Repair Stations . | . . . . Recycling Units 3 | . 3 . . Scanalyzers . | . . . . Garrison Access . | . . . . Terminal Hacks 1 | . 1 . . Branch Access Points 1 | . 1 . . Fabricator Hacks . | . . . . Repair Station Hacks . | . . . . Recycling Unit Hacks 1 | . 1 . . Report Inventory 1 | . 1 . . Scanalyzer . | . . . . Garrison Access Hacks . | . . . . Unauthorized Hacks . | . . . . Terminals . | . . . . Fabricators . | . . . . Repair Stations . | . . . . Recycling Units . | . . . . Scanalyzers . | . . . . Garrison Access . | . . . . Data Cores Recovered . | . . . . Used . | . . . . Hacking Detections 3 | . 3 . . Full Trace Events 2 | . 2 . . Feedback Events . | . . . . Feedback Blocked . | . . . . Robot Schematics Acquired . | . . . . Robots Built . | . . . . Authchips . | . . . . Time . | . . . . Total Robot Build Rating . | . . . . Part Schematics Acquired . | . . . . Parts Built . | . . . . Authchips . | . . . . Time . | . . . . Total Part Build Rating . | . . . . Part Studies Acquired . | . . . . Parts Repaired . | . . . . Time . | . . . . Parts Recycled . | . . . . Recycled Matter . | . . . . Retrieved Matter . | . . . . Retrieved Components . | . . . . Parts Scanalyzed . | . . . . Part Schematics Acquired . | . . . . Parts Damaged . | . . . . Bothacking | -11 -10 -10 -10 ------------ Run | Yrd Mat Min Exi Used RIF Installer . | . . . . Robots Hacked . | . . . . Non-combat . | . . . . Combat . | . . . . Robot Hacks Applied . | . . . . Relay Couplers Released . | . . . . Fabnet Peak Effective % . | . . . . Robots Rewired . | . . . . Allies Hacked . | . . . . Hacks Repelled . | . . . . Allies | -11 -10 -10 -10 -------- Run | Yrd Mat Min Exi Total Allies 1 | . . 1 . Largest Group 1 | . . 1 . Highest-Rated Group 31 | . . 31 . Highest-Rated Ally 31 | . . 31 . Total Orders . | . . . . Ally Attacks 4 | . . 4 . Total Damage 64 | . . 64 . Kills 1 | . . 1 . Allies Corrupted . | . . . . Allies Melted . | . . . . Intel | -11 -10 -10 -10 ------- Run | Yrd Mat Min Exi Active Infowar (turns) 2183 | 94 1456 633 . Structural 959 | . 326 633 . Seismic 1224 | 94 1130 . . Robot Analysis Total . | . . . . Derelict Logs Recovered 1 | . . 1 . Drone Launches . | . . . . Drone Recoveries . | . . . . Exploration | -11 -10 -10 -10 ------------- Run | Yrd Mat Min Exi Turns Passed 3400 | 181 1538 1131 550 Spaces Moved 2832 | 133 922 1137 640 Core 7 | 7 . . . Treads . | . . . . Legs . | . . . . Wheels 2825 | 126 922 1137 640 Hover . | . . . . Flight . | . . . . Fastest Speed 50 | 50 100 80 80 Average Speed 92 | 97 100 93 80 Slowest Speed 100 | 100 100 100 80 Overloaded Moves . | . . . . Propulsion Burnouts . | . . . . Robots Hopped . | . . . . Potential Cave-ins 1 | . . 1 . Cave-ins Triggered . | . . . . Exploration Rate (%) 63 | 5 63 95 89 Regions Visited 3 Branch Regions 2 Pre-discovered Areas 1 | . . 1 . Known Exits Taken 2 | . 1 1 . Unknown Exits Taken 1 | 1 . . . Scrap Searched 2 | . . 2 . Spaces Dug . | . . . . Terrain Destroyed 191 | . 16 175 . Melee . | . . . . Projectile . | . . . . AOE 191 | . 16 175 . Terrain Rammed . | . . . . Walls Destroyed . | . . . . Machines Disabled . | . . . . Actions | -11 -10 -10 -10 --------- Run | Yrd Mat Min Exi Total 3491 | 162 1490 1174 665 Wait 514 | . 510 4 . Move 2829 | 132 921 1136 640 Hop . | . . . . Pick Up 17 | 10 2 3 2 Fast Attach 16 | 6 4 1 5 Attach 4 | 1 . . 3 Detach 5 | . 2 . 3 Swap 8 | . 3 4 1 Drop 22 | 2 9 6 5 Fire 73 | 11 39 18 5 Melee . | . . . . Ram 1 | . . 1 . Kick . | . . . . Crush . | . . . . Escape Stasis . | . . . . Rewire 2 | . . 1 1 Trap . | . . . . Miscellaneous . | . . . . Route ------- -11/Scrapyard -10/Materials (discovered 3 exits: *Mat / *Min x2) -10/Mines (discovered 4 exits: *Mat x2 / *Exi / *Sub) -10/Exiles (discovered 1 exit: *Min) History --------- Turn | Location | Event 22 | -11/Scrapyard | Discovered new exit (range 16) 182 | -11/Scrapyard | Entered Materials 317 | -10/Materials | Build established: Mutant 465 | -10/Materials | Discovered new exit (range 16) 1090 | -10/Materials | Discovered new exit (range 7) 1242 | -10/Materials | Identified exit to Mines 1720 | -10/Materials | Entered Mines 1723 | -10/Mines | YI-UF0 nonchalantly dropped a Grenade Launcher on the ground 2220 | -10/Mines | Discovered new exit (range 10) 2225 | -10/Mines | Deemed a non-threat by the Exiles lab entrance 2225 | -10/Mines | Discovered new exit (range 6) 2319 | -10/Mines | Discovered new exit (range 8) 2354 | -10/Mines | Identified exit to Materials 2406 | -10/Mines | Learned location of Recycling (-8) 2482 | -10/Mines | Met a Derelict testing a Signal Generator 2482 | -10/Mines | Discovered exit to Materials (range 6) 2817 | -10/Mines | Identified exit to Exiles 2834 | -10/Mines | Identified exit to Subcaves 2851 | -10/Mines | Entered Exiles 2880 | -10/Exiles | Met 8R-AWN 2903 | -10/Exiles | Met EX-HEX 2973 | -10/Exiles | Met EX-DEC 3013 | -10/Exiles | Visited The Gauntlet 3149 | -10/Exiles | Discovered new exit (range 15) 3165 | -10/Exiles | Identified exit to Mines 3249 | -10/Exiles | Met EX-BIN 3264 | -10/Exiles | Aligned with FarCom system 3265 | -10/Exiles | Given EX-Vault access code 3297 | -10/Exiles | Opened EX-Vault 3303 | -10/Exiles | Found Prototype Device 3304 | -10/Exiles | Identified Chronowheel 3304 | -10/Exiles | Activated Chronowheel 3312 | -10/Exiles | Found Prototype Ballistic Gun 3312 | -10/Exiles | Identified AWS/Gauss 3318 | -10/Exiles | Found Prototype Processor 3318 | -10/Exiles | Identified 0b10 Alert Chip 3350 | -10/Exiles | Attacked by the Exiles 3373 | -10/Exiles | Core integrity fell below 50% 3397 | -10/Exiles | Core integrity fell below 20% 3401 | -10/Exiles | Destroyed by as-44517 with Assembled Maul Last Messages --------------- 03318_ Identified 0b10 Alert Chip. 03323_ Discarded 0b10 Alert Chip. 03327_ Acquired AWS/Gauss. 03337_ Dropped AWS/Gauss. 03341_ Acquired AWS/Gauss. 03349_ Connecting with EX-Prototypes Database... 03349_ EX-Prototypes Database disabled. 03350_ EXILES: Hostile robot within lab perimeter. Defensive protocols time, folks! 03358_ Dropped Mining Laser. 03366_ System corrupted: Matter fused (-5). 03381_ as-82281 destroyed. 03384_ Lgt. Armor Plating destroyed. 03389_ Knocked back. 03394_ Wheel destroyed. 03395_ Acquired Grenade Launcher. 03396_ Knocked back. 03396_ Ion Engine destroyed. 03397_ Acquired Grenade Launcher. 03397_ Wheel destroyed. Map ----- +----------------------------------------------------+ | | | | | | | | | | | | | | | | | | | | | | | | | | | | | | | | | | | | | | | | | | | ???????????????????????????###???????????????????? | | ????????????????????????####|####????????????????? | | ????????????????????????# #????????????????? | | ????????????????????????# a #????????????????? | | ????????????????????????#@a #????????????????? | | ????????????????????????## ##????????????????? | | ????????????????????????#X #?????????????????? | | ????????????????????????## a #?????????????????? | | ?????????????????????????# #?????????????????? | | ?????????????????????????# #???####??????????? | | ?????????????????????????# #??"""""??????????? | | ?????????????????????????# ## """#?????????? | | ?????????????????????????# X""#?????????? | | ?????????????????????????# ## """#?????????? | | ??????????????????######## a#??"""""??????????? | | ?????????????????#""""""## #???####??????????? | | ?????????????????#"""" ## #?????????????????? | | ?????????????????#""X" % #?????????????????? | | ?????????????????#" #?????????????????? | | ?????????????????#" ## #?????????????????? | | ?????????????????#""""""## #?#########???????? | | ?????????????????##"###### #?#"""""""#???????? | | ????????????????? ??????# #?#"""""""#???????? | | ????????????????""???????# #?#"""""""#???????? | | ????????????????????????## ###"" """"#???????? | | ????????????????????????#" """"#???????? | | ????????????????????????#" """#???????? | | ????????????????????????#" """#???????? | | ????????????????????????#" """#???????? | +----------------------------------------------------+ Best States ------------- Heat Dissipation 25 Energy Generation 10 Energy Capacity 250 Matter Stores 300 Matter Capacity 300 Sight Range 16 Terrain Scan Density 10 Armor Coverage 150 Core Shielding 20 Evasion (%) 44 Item Schematics ----------------- None Robot Schematics ------------------ None Fabricated ------------ Nothing Repaired ---------- Nothing Studied --------- None Alien Tech Used ----------------- None Achievements -------------- None Challenges ------------ None Game ------ Seed ConcussiveThrowingNetwork Manual? 0 Play Time 00:26:42 Cumulative 14.0 hours Start 2026.01.04 @ 17:51:43 End 2026.01.04 @ 18:17:59 Sessions 1 Manual Loads 0 Difficulty Rogue Special Mode None Game No. 18 Rogue 18 Adventurer 0 Explorer 0 Win Type - Total 0 Types 0/0/0/0/0/0/0/0/0/0 Lore% 16 Gallery% 14 Achievement% 15 Wizard Run 0 Options --------- Layout 1 ASCII 0 Keyboard 0 Movement Arrows Keybinds 0 Fullscreen 1 Font 24/Smallcaps Map View 50x40 Zoom Use 0% Tactical HUD 1 Map Filters NONE Filters NONE Steam 1 RUN: 3f275b30-8e26-4f3f-8c4b-2282a7851da8